[Event "EYCC 2017"]
[Site "Mamaia"]
[Date "2017.09.06"]
[Round "2"]
[White "Garifullina, Leya"]
[Black "Aubert, Estee"]
[Result "1-0"]
[ECO "B40"]
[WhiteElo "1970"]
[BlackElo "1800"]
[Annotator "NA"]
[PlyCount "97"]
[EventDate "2017.??.??"]
[EventType "swiss"]
[EventCountry "ROU"]
[SourceTitle "playchess.com"]
[Source "ChessBase"]
[SourceQuality "1"]
[TimeControl "40/5400+30:1800+30"]

1. e4 {[%emt 0:00:53]} c5 {[%emt 0:00:05]} 2. Nf3 {[%emt 0:00:34]} e6 {[%emt 0:00:04]} 3. d4 {[%emt 0:00:16]} cxd4 {[%emt 0:00:08]} 4. Nxd4 {[%emt 0:00:15]} Nf6 {[%emt 0:00:05]} 5. Nc3 {[%emt 0:01:01]} Nc6 {[%emt 0:00:05]} 6. Nxc6 {[%emt 0:00:41]} bxc6 {[%emt 0:00:06]} 7. e5 {[%emt 0:00:26]} Nd5 $11 {[%emt 0:00:04]} 8. Ne4 {[%emt 0:01:00]} Qc7 {[%emt 0:00:56]} 9. f4 {[%emt 0:00:26]} Qb6 {[%emt 0:01:27]} 10. c4 {[%emt 0:00:31]} Bb4+ {[%emt 0:00:38]} 11. Ke2 {[%emt 0:00:41]} Ba6 {[%emt 0:00:18]} 12. Kf3 {[%emt 0:00:30]} f5 {[%emt 0:01:33]} 13. exf6 {[%emt 0:01:00]} Nxf6 {[%emt 0:00:07]} 14. c5 {[%emt 0:00:39]} Qa5 {[%emt 0:15:43]} 15. Nxf6+ {[%emt 0:02:56]} gxf6 {[%emt 0:00:10]} 16. Bxa6 {[%emt 0:00:23]} Qxa6 {[%emt 0:00:12]} 17. Qd4 {[%emt 0:00:25]} Qb5 {[%emt 0:01:34]} 18. Be3 {[%emt 0:00:52]} Rf8 {[%emt 0:04:14]} 19. Rhd1 {[%emt 0:04:31]} O-O-O {[%emt 0:01:33]} 20. a3 {[%emt 0:03:34]} Ba5 {[%emt 0:00:08]} 21. b4 {[%emt 0:00:48]} Bc7 {[%emt 0:00:29]} 22. a4 {[%emt 0:00:47]} Qb7 {[%emt 0:02:33]} 23. Qc4 {[%emt 0:02:26]} e5 {[%emt 0:02:30]} 24. f5 {[%emt 0:13:24]} Rde8 {[%emt 0:04:46]} 25. Qe4 {[%emt 0:03:09]} Re7 {[%emt 0:04:42]} 26. b5 {[%emt 0:02:06]} Bb8 {[%emt 0:04:00]} 27. Ra2 {[%emt 0:05:02]} Rg8 {[%emt 0:00:46]} 28. Rad2 {[%emt 0:01:41]} h5 {[%emt 0:07:43]} 29. Rxd7 {[%emt 0:05:23]} Rxd7 {[%emt 0:00:18]} 30. bxc6 {[%emt 0:00:06]} Rxd1 {[%emt 0:02:27]} 31. cxb7+ {[%emt 0:00:06]} Kc7 {[%emt 0:00:14]} 32. Qc4 {[%emt 0:04:57]} Rf8 {[%emt 0:01:47]} 33. Bh6 {[%emt 0:01:28]} Rfd8 {[%emt 0:00:43]} 34. Qf7+ {[%emt 0:00:27]} R8d7 {[%emt 0:00:18]} 35. Qxf6 {[%emt 0:00:34]} R1d3+ {[%emt 0:04:08]} 36. Ke2 {[%emt 0:00:36]} R3d5 {[%emt 0:00:09]} 37. Be3 {[%emt 0:01:17]} Rd8 {[%emt 0:00:38]} 38. Qf7+ {[%emt 0:02:23]} R8d7 {[%emt 0:00:05]} 39. Qe6 {[%emt 0:00:06]} Rd8 {[%emt 0:01:12]} 40. f6 {[%emt 0:00:00]} Kxb7 {[%emt 0:05:06]} 41. f7 {[%emt 0:04:36]} Bc7 {[%emt 0:00:30]} 42. Qe7 {[%emt 0:00:50]} R5d7 {[%emt 0:00:15]} 43. f8=Q {[%emt 0:00:11]} Rxf8 {[%emt 0:01:59]} 44. Qxd7 {[%emt 0:00:19]} Rd8 {[%emt 0:00:07]} 45. Qb5+ {[%emt 0:00:26]} Kc8 {[%emt 0:00:26]} 46. c6 {[%emt 0:00:13]} Bb6 {[%emt 0:00:21]} 47. Bxb6 {[%emt 0:00:10]} axb6 {[%emt 0:00:37]} 48. Qxb6 {[%emt 0:00:14]} Rd4 {[%emt 0:00:07]} 49. Qb7+ {[%emt 0:00:25]} 1-0

[Event "EYCC 2017"]
[Site "Mamaia"]
[Date "2017.09.06"]
[Round "2"]
[White "Ziegenfuss, Antonia"]
[Black "Obada, Ema"]
[Result "1/2-1/2"]
[ECO "E22"]
[WhiteElo "1956"]
[BlackElo "1708"]
[Annotator "NA"]
[PlyCount "80"]
[EventDate "2017.??.??"]
[EventType "swiss"]
[EventCountry "ROU"]
[SourceTitle "playchess.com"]
[Source "ChessBase"]
[SourceQuality "1"]
[TimeControl "40/5400+30:1800+30"]

1. d4 {[%emt 0:00:00]} Nf6 {[%emt 0:00:08]} 2. c4 {[%emt 0:00:00]} e6 {[%emt 0:00:06]} 3. Nc3 {[%emt 0:00:00]} Bb4 {[%emt 0:00:08]} 4. Qb3 {[%emt 0:00:00]} Bxc3+ {[%emt 0:07:13]} 5. Qxc3 {[%emt 0:00:01]} d6 {[%emt 0:00:43]} 6. e3 {[%emt 0:02:46]} Nc6 {[%emt 0:04:17]} 7. Bd3 {[%emt 0:02:24]} e5 {[%emt 0:03:17]} 8. d5 {[%emt 0:01:54]} Ne7 {[%emt 0:00:23]} 9. Ne2 {[%emt 0:04:47]} O-O {[%emt 0:08:59]} 10. O-O {[%emt 0:01:01]} Nh5 {[%emt 0:08:33]} 11. f4 {[%emt 0:03:51]} exf4 {[%emt 0:02:21]} 12. Nxf4 {[%emt 0:00:13]} Nxf4 {[%emt 0:00:51]} 13. exf4 {[%emt 0:04:13]} Bf5 {[%emt 0:05:07]} 14. Be2 {[%emt 0:02:37]} Re8 {[%emt 0:06:54]} 15. Bf3 {[%emt 0:00:44]} Qd7 {[%emt 0:00:20]} 16. h3 {[%emt 0:04:43]} Ng6 {[%emt 0:02:03]} 17. g4 {[%emt 0:13:04]} Be4 {[%emt 0:00:13]} 18. f5 {[%emt 0:00:16]} Nf8 {[%emt 0:06:39]} 19. f6 {[%emt 0:02:43]} Ng6 {[%emt 0:14:55]} 20. Be3 h5 {[%emt 0:09:06]} 21. Qd4 {[%emt 0:35:36]} Bxf3 {[%emt 0:03:08]} 22. Rxf3 {[%emt 0:00:09]} Re5 {[%emt 0:00:49]} 23. Raf1 {[%emt 0:04:52]} Rae8 {[%emt 0:03:27]} 24. fxg7 {[%emt 0:02:32]} Re4 {[%emt 0:02:04]} 25. Qc3 {[%emt 0:07:46]} Ne5 {[%emt 0:01:06]} 26. Rf4 {[%emt 0:02:45]} Rxf4 {[%emt 0:00:08]} 27. Rxf4 {[%emt 0:00:43]} hxg4 {[%emt 0:00:14]} 28. hxg4 {[%emt 0:01:19]} Nxg4 {[%emt 0:00:32]} 29. Bd4 {[%emt 0:00:24]} Ne5 {[%emt 0:03:18]} 30. Rh4 {[%emt 0:02:29]} Qe7 {[%emt 0:02:55]} 31. Rh3 {[%emt 0:01:02]} Qg5+ {[%emt 0:01:09]} 32. Rg3 {[%emt 0:00:30]} Qh5 {[%emt 0:00:21]} 33. Rh3 {[%emt 0:00:34]} Qg4+ {[%emt 0:01:25]} 34. Rg3 {[%emt 0:00:18]} Nf3+ {[%emt 0:01:02]} 35. Qxf3 {[%emt 0:00:16]} Qxd4+ {[%emt 0:00:05]} 36. Kg2 {[%emt 0:00:15]} Qd2+ {[%emt 0:00:12]} 37. Kh3 {[%emt 0:00:38]} Qh6+ {[%emt 0:00:08]} 38. Kg2 {[%emt 0:00:38]} Qd2+ {[%emt 0:00:04]} 39. Kh3 {[%emt 0:00:09]} Qh6+ {[%emt 0:00:05]} 40. Kg2 {[%emt 0:00:00]} Qd2+ {[%emt 0:00:04]} 1/2-1/2

[Event "EYCC 2017"]
[Site "Mamaia"]
[Date "2017.09.06"]
[Round "2"]
[White "Gitu, Paula-Alexandra"]
[Black "Olde, Margareth"]
[Result "0-1"]
[ECO "B20"]
[WhiteElo "1948"]
[BlackElo "2161"]
[Annotator "NA"]
[PlyCount "109"]
[EventDate "2017.??.??"]
[EventType "swiss"]
[EventCountry "ROU"]
[SourceTitle "playchess.com"]
[Source "ChessBase"]
[SourceQuality "1"]
[TimeControl "40/5400+30:1800+30"]

1. e4 {[%emt 0:00:00]} c5 {[%emt 0:00:06]} 2. Be2 {[%emt 0:00:00]} Nc6 {[%emt 0:00:52]} 3. f4 {[%emt 0:00:00]} d6 {[%emt 0:03:28]} 4. Nf3 {[%emt 0:00:30]} g6 {[%emt 0:03:03]} 5. d3 {[%emt 0:02:18]} Bg7 {[%emt 0:00:45]} 6. c3 {[%emt 0:01:05]} Nf6 {[%emt 0:04:07]} 7. O-O {[%emt 0:01:40]} O-O {[%emt 0:01:18]} 8. Kh1 {[%emt 0:03:14]} Rb8 {[%emt 0:05:10]} 9. Be3 {[%emt 0:06:27]} b5 {[%emt 0:14:17]} 10. Nbd2 {[%emt 0:06:10]} a6 {[%emt 0:04:28]} 11. Nh4 {[%emt 0:14:43]} e6 {[%emt 0:05:33]} 12. Qe1 {[%emt 0:17:41]} Bb7 {[%emt 0:03:10]} 13. Bf3 {[%emt 0:10:04]} Nd7 {[%emt 0:05:37]} 14. g4 {[%emt 0:04:28]} b4 {[%emt 0:06:40]} 15. Rc1 {[%emt 0:14:57]} Nb6 {[%emt 0:03:21]} 16. Nb1 {[%emt 0:00:53]} Na4 {[%emt 0:05:09]} 17. Rc2 {[%emt 0:01:02]} Ba8 {[%emt 0:02:08]} 18. g5 {[%emt 0:02:23]} Ne7 {[%emt 0:10:20]} 19. Qf2 {[%emt 0:03:12]} b3 {[%emt 0:08:18]} 20. axb3 {[%emt 0:07:29]} Rxb3 {[%emt 0:00:05]} 21. Rg1 {[%emt 0:00:27]} f5 {[%emt 0:03:25]} 22. gxf6 {[%emt 0:00:41]} Bxf6 {[%emt 0:00:04]} 23. Bg4 {[%emt 0:00:55]} Qd7 {[%emt 0:04:00]} 24. Nf3 {[%emt 0:00:19]} c4 {[%emt 0:00:49]} 25. Nbd2 {[%emt 0:01:06]} Rxb2 {[%emt 0:03:38]} 26. Nxc4 {[%emt 0:00:05]} Rxc2 {[%emt 0:00:32]} 27. Qxc2 {[%emt 0:00:02]} Kf7 {[%emt 0:02:37]} 28. Nxd6+ {[%emt 0:01:28]} Qxd6 {[%emt 0:00:07]} 29. e5 {[%emt 0:00:36]} Qc6 {[%emt 0:00:58]} 30. exf6 {[%emt 0:00:05]} Nf5 {[%emt 0:00:20]} 31. Bf2 {[%emt 0:00:56]} h5 {[%emt 0:00:48]} 32. Rg2 {[%emt 0:00:31]} Ke8 {[%emt 0:00:44]} 33. Bxf5 {[%emt 0:00:29]} gxf5 {[%emt 0:00:09]} 34. Ne1 {[%emt 0:00:31]} Qb5 {[%emt 0:00:48]} 35. Qe2 {[%emt 0:00:30]} Bxg2+ {[%emt 0:00:31]} 36. Nxg2 {[%emt 0:00:05]} Rxf6 {[%emt 0:00:25]} 37. Qxh5+ {[%emt 0:00:16]} Rf7 {[%emt 0:00:20]} 38. Qh8+ {[%emt 0:00:41]} Rf8 {[%emt 0:00:33]} 39. Qh5+ {[%emt 0:00:59]} Rf7 {[%emt 0:00:03]} 40. Qh8+ {[%emt 0:00:00]} Kd7 {[%emt 0:00:51]} 41. Qd4+ {[%emt 0:03:49]} Kc7 {[%emt 0:04:07]} 42. c4 {[%emt 0:08:32]} Qb1+ {[%emt 0:02:33]} 43. Be1 {[%emt 0:00:18]} Rd7 {[%emt 0:04:19]} 44. Qa7+ {[%emt 0:11:49]} Qb7 {[%emt 0:01:14]} 45. Ba5+ {[%emt 0:01:20]} Kc8 {[%emt 0:00:08]} 46. Qe3 {[%emt 0:00:06]} Qc6 {[%emt 0:01:00]} 47. Kg1 {[%emt 0:03:50]} Nb2 {[%emt 0:01:09]} 48. Ne1 {[%emt 0:00:50]} Rg7+ {[%emt 0:00:54]} 49. Kf1 {[%emt 0:00:04]} Qh1+ {[%emt 0:09:02]} 50. Ke2 {[%emt 0:00:05]} Qxh2+ {[%emt 0:00:11]} 51. Qf2 {[%emt 0:00:07]} Rh7 {[%emt 0:04:14]} 52. Ng2 {[%emt 0:01:19]} Qh5+ {[%emt 0:00:18]} 53. Kd2 {[%emt 0:02:02]} Qd1+ {[%emt 0:00:11]} 54. Kc3 {[%emt 0:00:04]} Na4+ {[%emt 0:01:31]} 55. Kd4 0-1

[Event "EYCC 2017"]
[Site "Mamaia"]
[Date "2017.09.06"]
[Round "2"]
[White "Verbin, Valentina"]
[Black "Badelka, Olga"]
[Result "1-0"]
[ECO "B30"]
[WhiteElo "1947"]
[BlackElo "2335"]
[Annotator "NA"]
[PlyCount "106"]
[EventDate "2017.??.??"]
[EventType "swiss"]
[EventCountry "ROU"]
[SourceTitle "playchess.com"]
[Source "ChessBase"]
[SourceQuality "1"]
[TimeControl "40/5400+30:1800+30"]

1. e4 {[%emt 0:00:00]} c5 {[%emt 0:00:06]} 2. Nf3 {[%emt 0:00:00]} Nc6 {[%emt 0:00:04]} 3. Nc3 {[%emt 0:00:00]} e5 {[%emt 0:00:13]} 4. Bc4 {[%emt 0:00:00]} Be7 {[%emt 0:00:04]} 5. d3 {[%emt 0:00:04]} d6 {[%emt 0:00:06]} 6. Nd2 {[%emt 0:00:07]} Nf6 {[%emt 0:02:00]} 7. Nf1 {[%emt 0:00:14]} Bg4 {[%emt 0:00:36]} 8. f3 {[%emt 0:00:08]} Be6 {[%emt 0:00:04]} 9. Ne3 {[%emt 0:00:18]} O-O {[%emt 0:08:39]} 10. O-O {[%emt 0:00:23]} Nd4 {[%emt 0:00:57]} 11. Ncd5 {[%emt 0:03:00]} b5 {[%emt 0:03:34]} 12. Nxf6+ {[%emt 0:00:24]} Bxf6 {[%emt 0:00:05]} 13. Bd5 {[%emt 0:00:10]} Bxd5 {[%emt 0:10:17]} 14. Nxd5 {[%emt 0:00:14]} Bg5 {[%emt 0:01:26]} 15. c3 {[%emt 0:15:52]} Bxc1 {[%emt 0:00:54]} 16. Rxc1 {[%emt 0:00:27]} Ne6 {[%emt 0:00:07]} 17. g3 {[%emt 0:11:48]} Qd7 {[%emt 0:18:27]} 18. a3 {[%emt 0:12:56]} f5 {[%emt 0:02:57]} 19. Qd2 {[%emt 0:12:49]} f4 {[%emt 0:01:29]} 20. g4 {[%emt 0:01:05]} Rad8 {[%emt 0:06:11]} 21. Kg2 {[%emt 0:01:46]} a5 {[%emt 0:03:06]} 22. h4 {[%emt 0:08:12]} a4 {[%emt 0:07:30]} 23. Qe2 {[%emt 0:08:42]} Rf7 {[%emt 0:04:48]} 24. Rfd1 {[%emt 0:04:42]} Qa7 {[%emt 0:00:56]} 25. Rd2 {[%emt 0:03:06]} Nc7 {[%emt 0:04:08]} 26. Nxc7 {[%emt 0:00:41]} Rxc7 {[%emt 0:00:12]} 27. d4 {[%emt 0:04:38]} cxd4 {[%emt 0:00:52]} 28. Qxb5 {[%emt 0:00:31]} Rc5 {[%emt 0:00:53]} 29. Qd3 {[%emt 0:02:58]} Rb8 {[%emt 0:01:57]} 30. Rdc2 {[%emt 0:05:37]} Rb3 {[%emt 0:01:26]} 31. Qd2 {[%emt 0:02:29]} Qb6 {[%emt 0:10:16]} 32. Rd1 {[%emt 0:01:56]} h6 {[%emt 0:07:07]} 33. Kf1 {[%emt 0:00:13]} dxc3 {[%emt 0:01:07]} 34. bxc3 {[%emt 0:00:16]} Rxa3 {[%emt 0:00:52]} 35. Qxd6 {[%emt 0:01:07]} Qxd6 {[%emt 0:00:04]} 36. Rxd6 {[%emt 0:00:04]} Rcxc3 {[%emt 0:00:18]} 37. Rxc3 {[%emt 0:00:17]} Rxc3 {[%emt 0:00:03]} 38. Ke2 {[%emt 0:00:32]} Re3+ {[%emt 0:00:19]} 39. Kf2 {[%emt 0:00:05]} a3 {[%emt 0:00:24]} 40. Ra6 {[%emt 0:00:00]} Rb3 {[%emt 0:00:41]} 41. Kg2 {[%emt 0:02:45]} Rb2+ {[%emt 0:02:55]} 42. Kh3 {[%emt 0:00:05]} a2 {[%emt 0:00:05]} 43. g5 {[%emt 0:00:07]} h5 {[%emt 0:00:11]} 44. Ra7 {[%emt 0:03:41]} Kf8 {[%emt 0:01:08]} 45. Ra5 {[%emt 0:00:46]} Kf7 {[%emt 0:00:18]} 46. Ra6 {[%emt 0:01:23]} Ke7 {[%emt 0:03:57]} 47. Ra5 {[%emt 0:01:16]} Kd7 {[%emt 0:01:53]} 48. Rd5+ {[%emt 0:00:12]} Kc6 {[%emt 0:00:55]} 49. Ra5 {[%emt 0:00:06]} Rf2 {[%emt 0:00:38]} 50. Ra8 {[%emt 0:00:32]} Kb5 {[%emt 0:02:08]} 51. Ra7 {[%emt 0:00:23]} Kb4 {[%emt 0:00:37]} 52. Ra8 {[%emt 0:00:14]} Rxf3+ {[%emt 0:00:06]} 53. Kg2 {[%emt 0:00:05]} Ra3 {[%emt 0:00:07]} 1-0

[Event "EYCC 2017"]
[Site "Mamaia"]
[Date "2017.09.06"]
[Round "2"]
[White "Patole, Noam"]
[Black "Kanov, Nikola"]
[Result "1/2-1/2"]
[ECO "B01"]
[WhiteElo "1934"]
[BlackElo "1590"]
[Annotator "NA"]
[PlyCount "116"]
[EventDate "2017.??.??"]
[EventType "swiss"]
[EventCountry "ROU"]
[SourceTitle "playchess.com"]
[Source "ChessBase"]
[SourceQuality "1"]
[TimeControl "40/5400+30:1800+30"]

1. e4 {[%emt 0:00:00]} d5 {[%emt 0:00:41]} 2. exd5 {[%emt 0:01:07]} Qxd5 {[%emt 0:01:22]} 3. Nc3 {[%emt 0:00:21]} Qa5 {[%emt 0:02:49]} 4. d4 {[%emt 0:01:23]} Nf6 {[%emt 0:00:14]} 5. Nf3 {[%emt 0:00:26]} c6 {[%emt 0:00:28]} 6. Ne5 {[%emt 0:05:19]} Bf5 {[%emt 0:09:08]} 7. Qe2 {[%emt 0:06:55]} e6 {[%emt 0:03:11]} 8. Bd2 {[%emt 0:00:05]} Bb4 {[%emt 0:01:44]} 9. Nc4 {[%emt 0:00:37]} Qc7 {[%emt 0:03:11]} 10. O-O-O {[%emt 0:02:40]} Nbd7 {[%emt 0:03:05]} 11. g3 {[%emt 0:05:32]} Nd5 {[%emt 0:18:38]} 12. Ne3 {[%emt 0:08:44]} Nxe3 {[%emt 0:11:55]} 13. fxe3 {[%emt 0:00:48]} Nf6 {[%emt 0:01:07]} 14. Bg2 {[%emt 0:00:33]} Bg4 {[%emt 0:11:54]} 15. Bf3 {[%emt 0:00:08]} Bxf3 16. Qxf3 O-O-O {[%emt 0:01:06]} 17. Kb1 {[%emt 0:06:05]} Rhe8 {[%emt 0:07:06]} 18. Ne4 {[%emt 0:10:17]} Be7 {[%emt 0:01:42]} 19. Nxf6 {[%emt 0:03:40]} Bxf6 {[%emt 0:02:29]} 20. Bc3 {[%emt 0:03:53]} Kb8 21. Qf4 {[%emt 0:04:59]} Qxf4 {[%emt 0:07:33]} 22. gxf4 {[%emt 0:00:06]} c5 {[%emt 0:00:37]} 23. Rd3 {[%emt 0:08:15]} cxd4 {[%emt 0:00:14]} 24. Bxd4 {[%emt 0:00:12]} Bxd4 {[%emt 0:00:06]} 25. Rxd4 {[%emt 0:01:02]} Rxd4 {[%emt 0:00:11]} 26. exd4 {[%emt 0:00:10]} Kc7 {[%emt 0:01:13]} 27. Rg1 {[%emt 0:00:25]} g6 {[%emt 0:00:13]} 28. Rg5 {[%emt 0:00:23]} f5 {[%emt 0:01:05]} 29. c3 {[%emt 0:00:29]} Kd6 {[%emt 0:02:09]} 30. Kc2 {[%emt 0:00:38]} Rg8 {[%emt 0:01:27]} 31. h4 {[%emt 0:00:32]} Ke7 {[%emt 0:00:03]} 32. Kd3 {[%emt 0:00:55]} b5 {[%emt 0:00:47]} 33. b3 {[%emt 0:00:31]} h6 {[%emt 0:00:51]} 34. Rg2 {[%emt 0:00:14]} Kf6 {[%emt 0:00:24]} 35. c4 {[%emt 0:00:10]} bxc4+ {[%emt 0:01:30]} 36. bxc4 g5 {[%emt 0:01:05]} 37. hxg5+ {[%emt 0:01:19]} hxg5 {[%emt 0:00:13]} 38. Rxg5 {[%emt 0:00:22]} Rxg5 {[%emt 0:00:14]} 39. fxg5+ {[%emt 0:00:05]} Kxg5 {[%emt 0:00:06]} 40. Ke3 {[%emt 0:00:00]} Kg6 {[%emt 0:04:06]} 41. c5 {[%emt 0:00:33]} Kf6 {[%emt 0:00:19]} 42. Kf4 {[%emt 0:00:39]} Ke7 {[%emt 0:00:10]} 43. Ke5 {[%emt 0:00:40]} Kd7 {[%emt 0:01:39]} 44. a3 {[%emt 0:01:47]} Ke7 {[%emt 0:05:14]} 45. a4 {[%emt 0:00:55]} Kd7 {[%emt 0:01:58]} 46. a5 {[%emt 0:02:17]} a6 {[%emt 0:00:41]} 47. Kf4 {[%emt 0:02:39]} Kc6 {[%emt 0:00:14]} 48. Ke5 {[%emt 0:00:07]} Kd7 {[%emt 0:00:08]} 49. Kf4 {[%emt 0:07:29]} Kc6 {[%emt 0:00:06]} 50. Ke3 {[%emt 0:01:36]} Kd5 {[%emt 0:00:47]} 51. Kf4 {[%emt 0:02:07]} Kc6 {[%emt 0:00:05]} 52. Ke5 {[%emt 0:00:21]} Kd7 53. c6+ Kxc6 54. Kxe6 f4 55. d5+ Kc7 56. Ke7 f3 57. d6+ Kb7 58. d7 f2 1/2-1/2

[Event "EYCC 2017"]
[Site "Mamaia"]
[Date "2017.09.06"]
[Round "2"]
[White "Cramling Bellon, Anna"]
[Black "Sliwicka, Alicja"]
[Result "1/2-1/2"]
[ECO "D85"]
[WhiteElo "1926"]
[BlackElo "2230"]
[Annotator "NA"]
[PlyCount "73"]
[EventDate "2017.??.??"]
[EventType "swiss"]
[EventCountry "ROU"]
[SourceTitle "playchess.com"]
[Source "ChessBase"]
[SourceQuality "1"]
[TimeControl "40/5400+30:1800+30"]

1. d4 {[%emt 0:00:00]} Nf6 {[%emt 0:00:06]} 2. c4 {[%emt 0:00:00]} g6 {[%emt 0:00:05]} 3. Nc3 {[%emt 0:01:13]} d5 {[%emt 0:00:09]} 4. cxd5 {[%emt 0:00:10]} Nxd5 {[%emt 0:00:05]} 5. e4 {[%emt 0:00:03]} Nxc3 {[%emt 0:00:09]} 6. bxc3 {[%emt 0:00:04]} Bg7 {[%emt 0:00:07]} 7. Bg5 {[%emt 0:00:15]} c5 {[%emt 0:00:10]} 8. Rc1 {[%emt 0:00:06]} Qa5 {[%emt 0:00:10]} 9. Qd2 {[%emt 0:00:28]} Nc6 {[%emt 0:00:08]} 10. d5 $11 {[%emt 0:01:32] LiveBook: 4 Games} h6 {[%emt 0:00:10]} 11. Bf4 {[%emt 0:07:07]} Ne5 {[%emt 0:07:26]} 12. c4 {[%emt 0:15:49]} Qxd2+ {[%emt 0:00:46]} 13. Bxd2 {[%emt 0:00:55]} g5 {[%emt 0:03:24]} 14. h4 {[%emt 0:13:13]} f5 {[%emt 0:11:16]} 15. hxg5 {[%emt 0:12:14]} hxg5 {[%emt 0:00:20]} 16. Rxh8+ {[%emt 0:00:09]} Bxh8 {[%emt 0:00:07]} 17. Nf3 {[%emt 0:09:59]} Nxf3+ {[%emt 0:06:26]} 18. gxf3 {[%emt 0:00:02]} f4 {[%emt 0:01:05]} 19. Bg2 {[%emt 0:02:54]} b6 {[%emt 0:04:58]} 20. Ke2 {[%emt 0:00:41]} Ba6 {[%emt 0:01:44]} 21. a4 {[%emt 0:03:22]} Bd4 {[%emt 0:02:19]} 22. Bh3 {[%emt 0:06:23]} Kf7 {[%emt 0:10:26]} 23. Kf1 {[%emt 0:00:09]} Rh8 {[%emt 0:01:19]} 24. Be6+ {[%emt 0:00:11]} Kf6 {[%emt 0:01:16]} 25. Kg2 {[%emt 0:00:06]} Ke5 {[%emt 0:03:49]} 26. Bg4 {[%emt 0:04:42]} Kd6 {[%emt 0:08:39]} 27. Rc2 {[%emt 0:03:56]} Kc7 {[%emt 0:03:05]} 28. Rc1 {[%emt 0:01:43]} Rh6 {[%emt 0:01:36]} 29. Be1 {[%emt 0:03:01]} Bb7 {[%emt 0:02:34]} 30. Rb1 {[%emt 0:02:05]} Kb8 {[%emt 0:05:33]} 31. Bd7 {[%emt 0:03:20]} Kc7 {[%emt 0:05:12]} 32. Bg4 {[%emt 0:00:11]} a5 {[%emt 0:03:16]} 33. Rc1 {[%emt 0:02:30]} Ba6 {[%emt 0:04:08]} 34. Rc2 {[%emt 0:00:34]} Kd6 {[%emt 0:01:41]} 35. Bd2 {[%emt 0:02:37]} Ke5 {[%emt 0:00:50]} 36. Be1 {[%emt 0:01:10]} Rh4 {[%emt 0:01:28]} 37. Bf5 {[%emt 0:01:15]} 1/2-1/2

[Event "EYCC 2017"]
[Site "Mamaia"]
[Date "2017.09.06"]
[Round "2"]
[White "Jorge, Rita Maria Osorio"]
[Black "Limanovska, Elizabete"]
[Result "1-0"]
[ECO "B52"]
[WhiteElo "1923"]
[BlackElo "2071"]
[Annotator "NA"]
[PlyCount "61"]
[EventDate "2017.??.??"]
[EventType "swiss"]
[EventCountry "ROU"]
[SourceTitle "playchess.com"]
[Source "ChessBase"]
[SourceQuality "1"]
[TimeControl "40/5400+30:1800+30"]

1. e4 {[%emt 0:00:00]} c5 {[%emt 0:00:05]} 2. Nf3 {[%emt 0:00:00]} d6 {[%emt 0:00:03]} 3. Bb5+ {[%emt 0:00:00]} Bd7 {[%emt 0:00:06]} 4. Bxd7+ {[%emt 0:00:00]} Qxd7 {[%emt 0:00:07]} 5. O-O {[%emt 0:00:00]} Nc6 {[%emt 0:00:05]} 6. c3 {[%emt 0:00:00]} Nf6 {[%emt 0:00:05]} 7. Re1 {[%emt 0:00:07]} e6 {[%emt 0:00:04]} 8. d4 {[%emt 0:00:09]} cxd4 {[%emt 0:00:06]} 9. cxd4 {[%emt 0:00:05]} d5 {[%emt 0:00:05]} 10. e5 {[%emt 0:00:07]} Ne4 {[%emt 0:00:04]} 11. Nbd2 {[%emt 0:00:09]} Nxd2 {[%emt 0:00:09]} 12. Bxd2 {[%emt 0:00:06]} Be7 {[%emt 0:00:13]} 13. Rc1 {[%emt 0:00:40]} O-O {[%emt 0:04:10]} 14. Rc3 {[%emt 0:00:23]} Rfc8 {[%emt 0:00:24]} 15. a3 {[%emt 0:00:20]} a5 {[%emt 0:02:18]} 16. Rd3 {[%emt 0:03:42]} a4 {[%emt 0:10:38]} 17. Ng5 {[%emt 0:09:30]} h6 {[%emt 0:27:23]} 18. Nh3 {[%emt 0:16:48]} Bf8 {[%emt 0:06:23]} 19. Qg4 {[%emt 0:07:26]} g6 {[%emt 0:13:45]} 20. Qh4 {[%emt 0:32:51]} Qe7 {[%emt 0:17:44]} 21. Bg5 {[%emt 0:05:11]} hxg5 {[%emt 0:02:05]} 22. Nxg5 {[%emt 0:00:10]} Bg7 {[%emt 0:01:08]} 23. Rf3 {[%emt 0:02:09]} f5 {[%emt 0:07:00]} 24. exf6 {[%emt 0:13:40]} Bxf6 {[%emt 0:00:05]} 25. Rxf6 {[%emt 0:00:35]} Qxf6 {[%emt 0:00:29]} 26. Qh7+ {[%emt 0:00:25]} Kf8 {[%emt 0:00:03]} 27. Nxe6+ {[%emt 0:00:46]} Ke8 {[%emt 0:00:23]} 28. Nc5+ {[%emt 0:01:14]} Ne7 {[%emt 0:01:26]} 29. Qg8+ {[%emt 0:00:32]} Qf8 {[%emt 0:00:10]} 30. Rxe7+ {[%emt 0:00:19]} Kxe7 {[%emt 0:00:10]} 31. Qe6+ {[%emt 0:00:07]} 1-0